[Event "Djerba Festival Open-B 2025"]
[Site "Djerba"]
[Date "2025.02.18"]
[Round "4.18"]
[White "Alsaiti, Mohamed Abdalgader"]
[Black "Tkitek Mohamed Mejed"]
[Result "1/2-1/2"]
[Annotator "NA"]
[ECO "A47"]
[WhiteElo "1674"]
[BlackElo "1875"]
[PlyCount "71"]
[EventDate "2025.02.15"]
[EventType "swiss"]
[EventCountry "TUN"]
[SourceTitle "playchess.com"]
[Source "ChessBase"]
[SourceQuality "1"]
[TimeControl "5400+30"]

1. d4 {[%emt 0:03:34]} Nf6 {[%emt 0:00:07]} 2. Nc3 {[%emt 0:00:06]} e6 {[%emt 0:00:20]} 3. Bf4 {[%emt 0:00:06]} b6 {[%emt 0:00:21]} 4. e3 {[%emt 0:00:06]} Bb7 {[%emt 0:00:07]} 5. Nf3 {[%emt 0:01:04]} a6 {[%emt 0:02:44]} 6. h3 {[%emt 0:03:06]} Be7 {[%emt 0:02:56]} 7. Bd3 {[%emt 0:02:50]} d5 {[%emt 0:01:55]} 8. Ne5 {[%emt 0:01:34]} Nbd7 {[%emt 0:01:06]} 9. Qf3 {[%emt 0:02:45]} c5 {[%emt 0:00:49]} 10. g4 {[%emt 0:07:27]} cxd4 {[%emt 0:04:51]} 11. exd4 {[%emt 0:00:46]} Bb4 {[%emt 0:00:11]} 12. g5 {[%emt 0:17:26]} Nxe5 {[%emt 0:00:27]} 13. Bxe5 {[%emt 0:07:10]} Ne4 {[%emt 0:02:34]} 14. Bxe4 {[%emt 0:05:04]} dxe4 {[%emt 0:00:04]} 15. Qe3 {[%emt 0:00:56]} O-O {[%emt 0:01:39]} 16. Rg1 {[%emt 0:03:38]} Rc8 {[%emt 0:00:59]} 17. h4 {[%emt 0:02:26]} Qd5 {[%emt 0:01:57]} 18. h5 {[%emt 0:04:28]} Rxc3 {[%emt 0:04:25]} 19. bxc3 {[%emt 0:03:17]} Bd6 {[%emt 0:00:01]} 20. Qf4 {[%emt 0:11:07]} Bxe5 {[%emt 0:01:01]} 21. Qxe5 {[%emt 0:01:01]} Qc4 {[%emt 0:00:30]} 22. Rg3 {[%emt 0:04:43]} Qd5 {[%emt 0:01:18]} 23. h6 {[%emt 0:01:57]} Qxe5 {[%emt 0:00:03]} 24. dxe5 {[%emt 0:00:01]} Rc8 {[%emt 0:00:19]} 25. Rd1 {[%emt 0:02:19]} Bd5 {[%emt 0:00:12]} 26. a4 {[%emt 0:01:55]} g6 {[%emt 0:00:07]} 27. Rb1 {[%emt 0:00:56]} Rc6 {[%emt 0:00:14]} 28. Kd2 {[%emt 0:00:28]} Kf8 {[%emt 0:00:04]} 29. Rgg1 {[%emt 0:00:30]} Ke7 {[%emt 0:00:14]} 30. Rb2 {[%emt 0:00:26]} Kd7 {[%emt 0:00:31]} 31. Rgb1 {[%emt 0:01:30]} Kc7 {[%emt 0:00:05]} 32. Rg1 {[%emt 0:00:54]} Kd7 {[%emt 0:02:55]} 33. Rgb1 {[%emt 0:01:04]} Kc7 {[%emt 0:00:17]} 34. Rg1 {[%emt 0:01:27]} Kb7 {[%emt 0:00:02]} 35. Rgb1 {[%emt 0:00:32]} a5 {[%emt 0:01:30]} 36. Rg1 {[%emt 0:01:33]} 1/2-1/2

[Event "Djerba Festival Open-B 2025"]
[Site "Djerba"]
[Date "2025.02.18"]
[Round "4.19"]
[White "Perrusset, Barbara"]
[Black "Falezan, Arnaud"]
[Result "1/2-1/2"]
[Annotator "NA"]
[ECO "C47"]
[WhiteElo "1869"]
[BlackElo "1662"]
[PlyCount "155"]
[EventDate "2025.02.15"]
[EventType "swiss"]
[EventCountry "TUN"]
[SourceTitle "playchess.com"]
[Source "ChessBase"]
[SourceQuality "1"]
[TimeControl "5400+30"]

1. e4 {[%emt 0:00:05]} e5 {[%emt 0:00:12]} 2. Nf3 {[%emt 0:00:10]} Nc6 {[%emt 0:00:09]} 3. Nc3 {[%emt 0:00:54]} Nf6 {[%emt 0:00:13]} 4. d4 {[%emt 0:00:31]} exd4 {[%emt 0:00:11]} 5. Nxd4 {[%emt 0:00:06]} Bb4 {[%emt 0:00:20]} 6. Nxc6 {[%emt 0:00:21]} bxc6 {[%emt 0:00:20]} 7. Bd3 {[%emt 0:00:11]} d5 {[%emt 0:00:25]} 8. exd5 {[%emt 0:00:08]} O-O {[%emt 0:00:14]} 9. O-O {[%emt 0:00:19]} cxd5 {[%emt 0:00:21]} 10. Bg5 {[%emt 0:00:37]} c6 {[%emt 0:01:54]} 11. Na4 {[%emt 0:02:23]} Re8 {[%emt 0:07:33]} 12. c3 {[%emt 0:00:52]} Bd6 {[%emt 0:01:46]} 13. Qf3 {[%emt 0:13:48]} Be7 {[%emt 0:24:19]} 14. Rfe1 {[%emt 0:16:36]} Be6 {[%emt 0:04:29]} 15. b4 {[%emt 0:05:27]} a5 {[%emt 0:16:41]} 16. a3 {[%emt 0:00:30]} axb4 {[%emt 0:00:24]} 17. axb4 {[%emt 0:00:16]} Nd7 {[%emt 0:05:58]} 18. Bxe7 {[%emt 0:17:30]} Qxe7 {[%emt 0:00:24]} 19. Bc2 {[%emt 0:10:52]} Qg5 {[%emt 0:04:25]} 20. Qd3 {[%emt 0:04:09]} g6 {[%emt 0:01:28]} 21. Qe3 {[%emt 0:02:07]} Qf6 {[%emt 0:02:45]} 22. Nc5 {[%emt 0:01:31]} Rxa1 {[%emt 0:05:11]} 23. Rxa1 {[%emt 0:00:13]} Nxc5 {[%emt 0:03:33]} 24. Qxc5 {[%emt 0:00:15]} Bd7 {[%emt 0:01:06]} 25. Bd3 {[%emt 0:02:56]} Qe5 {[%emt 0:02:28]} 26. Qd4 {[%emt 0:05:47]} Qxd4 {[%emt 0:01:35]} 27. cxd4 {[%emt 0:00:06]} Rb8 {[%emt 0:00:29]} 28. Rb1 {[%emt 0:01:30]} Kg7 {[%emt 0:01:26]} 29. Kf1 {[%emt 0:01:23]} Kf6 {[%emt 0:00:36]} 30. Ke2 {[%emt 0:01:31]} Bf5 {[%emt 0:01:47]} 31. Bxf5 {[%emt 0:01:17]} Kxf5 {[%emt 0:00:05]} 32. Kd3 {[%emt 0:05:12]} Ra8 {[%emt 0:00:25]} 33. Rb3 {[%emt 0:00:37]} Kf4 {[%emt 0:03:16]} 34. Rc3 {[%emt 0:00:47]} Ra6 {[%emt 0:01:03]} 35. Rc5 {[%emt 0:01:05]} Ra3+ {[%emt 0:09:00]} 36. Ke2 {[%emt 0:00:17]} Ke4 {[%emt 0:00:51]} 37. Rxc6 {[%emt 0:00:19]} Ra2+ {[%emt 0:00:58]} 38. Ke1 {[%emt 0:01:49]} Kd3 {[%emt 0:00:34]} 39. Rc1 {[%emt 0:01:01]} Kxd4 {[%emt 0:00:11]} 40. Rb1 {[%emt 0:02:35]} Ra6 {[%emt 0:00:40]} 41. Kd2 {[%emt 0:01:24]} Rb6 {[%emt 0:00:16]} 42. b5 {[%emt 0:00:35]} Kc5 {[%emt 0:00:29]} 43. Rc1+ {[%emt 0:01:11]} Kxb5 {[%emt 0:00:10]} 44. Rc7 {[%emt 0:00:38]} Rf6 {[%emt 0:00:11]} 45. f3 {[%emt 0:00:23]} Kb6 {[%emt 0:00:16]} 46. Rc8 {[%emt 0:00:45]} Kb7 {[%emt 0:00:34]} 47. Rc5 {[%emt 0:00:27]} Rd6 {[%emt 0:01:26]} 48. Kd3 {[%emt 0:00:09]} Kb6 {[%emt 0:00:29]} 49. Kd4 {[%emt 0:00:14]} Rc6 {[%emt 0:00:49]} 50. Rxd5 {[%emt 0:00:27]} Rc2 {[%emt 0:00:17]} 51. g3 {[%emt 0:01:06]} Rxh2 {[%emt 0:00:15]} 52. Ke3 {[%emt 0:00:26]} Kc6 {[%emt 0:00:25]} 53. Rd8 {[%emt 0:00:18]} Rh5 {[%emt 0:01:03]} 54. Ke4 {[%emt 0:00:40]} Kc7 {[%emt 0:00:23]} 55. Rd2 {[%emt 0:00:31]} Rc5 {[%emt 0:00:32]} 56. Rh2 {[%emt 0:00:39]} h5 {[%emt 0:00:28]} 57. Rd2 {[%emt 0:00:04]} f6 {[%emt 0:00:09]} 58. Ke3 {[%emt 0:00:45]} Rc6 {[%emt 0:00:21]} 59. Rd4 {[%emt 0:00:41]} Rd6 {[%emt 0:00:29]} 60. Ra4 {[%emt 0:00:21]} Kd7 {[%emt 0:00:35]} 61. Ra8 {[%emt 0:00:27]} Ke6 {[%emt 0:00:34]} 62. Ra5 {[%emt 0:00:39]} Rd5 {[%emt 0:00:48]} 63. Ra6+ {[%emt 0:00:29]} Kf5 {[%emt 0:00:14]} 64. Ra4 {[%emt 0:00:25]} g5 {[%emt 0:00:50]} 65. Re4 {[%emt 0:00:37]} Re5 {[%emt 0:00:38]} 66. g4+ {[%emt 0:00:24]} hxg4 {[%emt 0:00:14]} 67. fxg4+ {[%emt 0:00:03]} Ke6 {[%emt 0:00:13]} 68. Kf3 {[%emt 0:00:40]} Kd5 {[%emt 0:01:04]} 69. Ra4 {[%emt 0:00:35]} Ke6 {[%emt 0:00:25]} 70. Ra6+ {[%emt 0:00:19]} Kf7 {[%emt 0:00:10]} 71. Rb6 {[%emt 0:00:31]} Ra5 {[%emt 0:00:33]} 72. Rc6 {[%emt 0:00:35]} Ra4 {[%emt 0:00:18]} 73. Rb6 {[%emt 0:00:18]} Rf4+ {[%emt 0:00:52]} 74. Kg3 {[%emt 0:00:08]} f5 {[%emt 0:00:23]} 75. Rb7+ {[%emt 0:00:44]} Kf6 {[%emt 0:00:31]} 76. Rb6+ {[%emt 0:00:13]} Ke7 {[%emt 0:00:25]} 77. gxf5 {[%emt 0:00:18]} Rxf5 {[%emt 0:00:18]} 78. Kg4 {[%emt 0:00:30]} 1/2-1/2

[Event "Djerba Festival Open-B 2025"]
[Site "Djerba"]
[Date "2025.02.18"]
[Round "4.20"]
[White "Alouani, Ahmed"]
[Black "Le Dore, Yann"]
[Result "0-1"]
[Annotator "NA"]
[ECO "A48"]
[WhiteElo "1617"]
[BlackElo "1846"]
[PlyCount "92"]
[EventDate "2025.02.15"]
[EventType "swiss"]
[EventCountry "TUN"]
[SourceTitle "playchess.com"]
[Source "ChessBase"]
[SourceQuality "1"]
[TimeControl "5400+30"]

1. d4 {[%emt 0:00:05]} Nf6 {[%emt 0:00:09]} 2. Nf3 {[%emt 0:00:12]} c5 {[%emt 0:00:46]} 3. e3 {[%emt 0:03:22]} g6 {[%emt 0:02:10]} 4. b3 {[%emt 0:03:07]} cxd4 {[%emt 0:02:42]} 5. exd4 {[%emt 0:00:22]} Bg7 {[%emt 0:00:26]} 6. Bb2 {[%emt 0:00:53]} O-O {[%emt 0:01:52]} 7. Be2 {[%emt 0:04:34]} Qa5+ {[%emt 0:04:29]} 8. Qd2 {[%emt 0:02:36]} Qb6 {[%emt 0:01:40]} 9. Nc3 {[%emt 0:06:16]} d5 {[%emt 0:00:59]} 10. Na4 {[%emt 0:04:29]} Qc7 {[%emt 0:00:41]} 11. Nc3 {[%emt 0:04:35]} Bg4 {[%emt 0:02:03]} 12. h3 {[%emt 0:02:11]} Bxf3 {[%emt 0:00:21]} 13. Bxf3 {[%emt 0:00:14]} e6 {[%emt 0:03:41]} 14. O-O {[%emt 0:03:14]} Nc6 {[%emt 0:02:03]} 15. Na4 {[%emt 0:03:45]} Rfd8 {[%emt 0:02:13]} 16. Rfe1 {[%emt 0:00:48]} Rac8 {[%emt 0:01:05]} 17. c4 {[%emt 0:07:10]} dxc4 {[%emt 0:02:01]} 18. bxc4 {[%emt 0:00:03]} Nxd4 {[%emt 0:06:10]} 19. Bxd4 {[%emt 0:02:35]} Qxc4 {[%emt 0:01:28]} 20. Rac1 {[%emt 0:00:36]} Qxa4 {[%emt 0:05:33]} 21. Rxc8 {[%emt 0:00:47]} Rxc8 {[%emt 0:00:36]} 22. Qb2 {[%emt 0:00:48]} Rc2 {[%emt 0:06:53]} 23. Qb3 {[%emt 0:10:07]} Qxb3 {[%emt 0:02:48]} 24. axb3 {[%emt 0:00:03]} b6 {[%emt 0:01:15]} 25. Be5 {[%emt 0:08:34]} Nd7 {[%emt 0:01:32]} 26. Bf4 {[%emt 0:01:42]} Bd4 {[%emt 0:06:16]} 27. Rd1 {[%emt 0:12:32]} e5 {[%emt 0:02:07]} 28. Bh6 {[%emt 0:04:34]} Bxf2+ {[%emt 0:08:03]} 29. Kh2 {[%emt 0:00:38]} Bd4 {[%emt 0:00:06]} 30. Bd5 {[%emt 0:01:05]} Nf6 {[%emt 0:05:17]} 31. Bc4 {[%emt 0:00:51]} Nh5 {[%emt 0:02:52]} 32. Rd3 {[%emt 0:03:36]} Ng7 {[%emt 0:03:54]} 33. Bd2 {[%emt 0:06:42]} Nf5 {[%emt 0:01:50]} 34. Bb4 {[%emt 0:03:15]} Ne3 {[%emt 0:04:19]} 35. Bb5 {[%emt 0:00:49]} Nxg2 {[%emt 0:02:17]} 36. Kh1 {[%emt 0:00:43]} Nf4 {[%emt 0:01:13]} 37. Rd1 {[%emt 0:00:21]} Nxh3 {[%emt 0:01:45]} 38. Be1 {[%emt 0:00:03]} Nf2+ {[%emt 0:01:24]} 39. Bxf2 {[%emt 0:00:11]} Rxf2 {[%emt 0:00:06]} 40. Bc4 {[%emt 0:00:43]} a5 {[%emt 0:00:33]} 41. Rc1 {[%emt 0:00:36]} Kg7 {[%emt 0:00:45]} 42. b4 {[%emt 0:00:42]} a4 {[%emt 0:00:44]} 43. b5 {[%emt 0:00:06]} a3 {[%emt 0:00:10]} 44. Rg1 {[%emt 0:00:46]} Rf4 {[%emt 0:04:34]} 45. Rc1 {[%emt 0:00:32]} Bb2 {[%emt 0:00:41]} 46. Rc2 {[%emt 0:00:17]} Rxc4 {[%emt 0:00:45]} 0-1

[Event "Djerba Festival Open-B 2025"]
[Site "Djerba"]
[Date "2025.02.18"]
[Round "4.21"]
[White "Zerarga, Imene"]
[Black "Nahom, Perez"]
[Result "1-0"]
[Annotator "NA"]
[ECO "B76"]
[WhiteElo "1831"]
[BlackElo "1641"]
[PlyCount "61"]
[EventDate "2025.02.15"]
[EventType "swiss"]
[EventCountry "TUN"]
[SourceTitle "playchess.com"]
[Source "ChessBase"]
[SourceQuality "1"]
[TimeControl "5400+30"]

1. e4 {[%emt 0:00:02]} c5 {[%emt 0:00:09]} 2. Nf3 {[%emt 0:00:06]} d6 {[%emt 0:00:08]} 3. d4 {[%emt 0:00:08]} cxd4 {[%emt 0:00:03]} 4. Nxd4 {[%emt 0:00:07]} g6 {[%emt 0:00:57]} 5. Be3 {[%emt 0:00:22]} Bg7 {[%emt 0:00:22]} 6. Nc3 {[%emt 0:00:31]} Nf6 {[%emt 0:00:32]} 7. f3 {[%emt 0:00:07]} O-O {[%emt 1:31:49]} 8. Qd2 {[%emt 1:33:07]} Nc6 {[%emt 0:00:00]} 9. O-O-O {[%emt 0:00:00]} d5 {[%emt 0:00:00]} 10. exd5 {[%emt 0:00:00]} Nxd5 {[%emt 0:00:00]} 11. Nxc6 {[%emt 0:00:00]} bxc6 {[%emt 0:00:00]} 12. Bd4 {[%emt 0:00:00]} Nxc3 {[%emt 0:00:00]} 13. Qxc3 {[%emt 0:00:00]} Bxd4 {[%emt 0:00:00]} 14. Rxd4 {[%emt 0:00:00]} Qb6 {[%emt 0:00:00]} 15. h4 {[%emt 0:00:00]} h5 {[%emt 0:00:00]} 16. g4 {[%emt 0:00:00]} hxg4 {[%emt 0:00:00]} 17. fxg4 {[%emt 0:00:00]} c5 {[%emt 0:00:00]} 18. Rc4 {[%emt 0:00:00]} Be6 {[%emt 0:00:00]} 19. Rxc5 {[%emt 0:00:00]} Bxg4 {[%emt 0:00:00]} 20. h5 {[%emt 0:00:00]} Rfc8 {[%emt 0:00:00]} 21. hxg6 {[%emt 0:00:00]} f6 {[%emt 0:00:00]} 22. Qc4+ {[%emt 0:00:00]} Qe6 {[%emt 0:00:00]} 23. Qxe6+ {[%emt 0:00:00]} Bxe6 {[%emt 0:00:00]} 24. Rch5 {[%emt 0:00:00]} Kg7 {[%emt 0:00:00]} 25. Rh7+ {[%emt 0:00:00]} Kxg6 {[%emt 0:00:00]} 26. Bd3+ {[%emt 0:00:00]} Kg5 {[%emt 0:00:00]} 27. Rg1+ {[%emt 0:00:00]} Kf4 {[%emt 0:00:00]} 28. Rxe7 {[%emt 0:00:00]} Re8 {[%emt 0:00:00]} 29. Rf1+ {[%emt 0:00:00]} Ke5 {[%emt 0:00:00]} 30. Re1+ {[%emt 0:00:00]} Kd6 {[%emt 0:00:00]} 31. R1xe6+ {[%emt 0:11:30]} 1-0

[Event "Djerba Festival Open-B 2025"]
[Site "Djerba"]
[Date "2025.02.18"]
[Round "4.22"]
[White "Skhiri Youssef"]
[Black "Chaudesaygues, Hugo"]
[Result "1-0"]
[Annotator "NA"]
[ECO "A20"]
[WhiteElo "1808"]
[BlackElo "1624"]
[PlyCount "69"]
[EventDate "2025.02.15"]
[EventType "swiss"]
[EventCountry "TUN"]
[SourceTitle "playchess.com"]
[Source "ChessBase"]
[SourceQuality "1"]
[TimeControl "5400+30"]

1. c4 {[%emt 1:31:00]} e5 {[%emt 1:31:00]} 2. g3 {[%emt 0:00:30]} Nf6 {[%emt 0:00:30]} 3. Bg2 {[%emt 0:00:30]} c6 {[%emt 0:00:30]} 4. d4 {[%emt 0:00:30]} exd4 {[%emt 0:00:30]} 5. Qxd4 {[%emt 0:00:30]} Qb6 {[%emt 0:00:30]} 6. Be3 {[%emt 0:00:30]} Qxd4 {[%emt 0:00:30]} 7. Bxd4 {[%emt 0:00:30]} c5 {[%emt 0:00:30]} 8. Bxf6 {[%emt 0:00:30]} gxf6 {[%emt 0:00:30]} 9. Nc3 {[%emt 0:00:30]} Nc6 {[%emt 0:00:30]} 10. Nd5 {[%emt 0:00:30]} Kd8 {[%emt 0:00:30]} 11. O-O-O {[%emt 0:00:30]} Bg7 {[%emt 0:00:30]} 12. Nh3 {[%emt 0:00:30]} Nb4 {[%emt 0:00:30]} 13. Nxb4 {[%emt 0:00:30]} cxb4 {[%emt 0:00:30]} 14. e3 {[%emt 0:00:30]} Rb8 {[%emt 0:00:30]} 15. Nf4 {[%emt 0:00:30]} h5 {[%emt 0:00:30]} 16. Bf3 {[%emt 0:00:30]} h4 {[%emt 0:00:30]} 17. gxh4 {[%emt 0:00:30]} b5 {[%emt 0:00:30]} 18. c5 {[%emt 0:00:30]} Bb7 {[%emt 0:00:30]} 19. c6 {[%emt 0:00:30]} Bc8 {[%emt 0:00:30]} 20. Nh5 {[%emt 0:00:30]} Bf8 {[%emt 0:00:30]} 21. Nxf6 {[%emt 0:00:30]} d6 {[%emt 0:00:30]} 22. Nd5 {[%emt 0:00:30]} Ke8 {[%emt 0:00:30]} 23. c7 {[%emt 0:00:30]} Rb7 {[%emt 0:00:30]} 24. Nf6+ {[%emt 0:00:30]} Ke7 {[%emt 0:00:30]} 25. Bxb7 {[%emt 0:00:30]} Bxb7 {[%emt 0:00:30]} 26. Nd5+ {[%emt 0:00:30]} Kd7 {[%emt 0:00:30]} 27. h5 {[%emt 0:00:30]} Bg7 {[%emt 0:00:30]} 28. Rhg1 {[%emt 0:00:30]} Be5 {[%emt 0:00:30]} 29. f4 {[%emt 0:00:30]} Ke6 {[%emt 0:00:30]} 30. fxe5 {[%emt 0:00:30]} Bxd5 {[%emt 0:00:30]} 31. exd6 {[%emt 0:00:30]} Bc6 {[%emt 0:00:30]} 32. h6 {[%emt 0:00:30]} Bd7 {[%emt 0:00:30]} 33. h7 {[%emt 0:00:30]} Rxh7 {[%emt 0:00:30]} 34. Rg8 {[%emt 0:00:30]} Rxh2 {[%emt 0:00:30]} 35. Re8+ {[%emt 0:00:30]} 1-0

[Event "Djerba Festival Open-B 2025"]
[Site "Djerba"]
[Date "2025.02.18"]
[Round "4.23"]
[White "Girard, Adrien"]
[Black "Ferahi, Tarik"]
[Result "1/2-1/2"]
[Annotator "NA"]
[ECO "C45"]
[WhiteElo "1796"]
[BlackElo "1612"]
[PlyCount "69"]
[EventDate "2025.02.15"]
[EventType "swiss"]
[EventCountry "TUN"]
[SourceTitle "playchess.com"]
[Source "ChessBase"]
[SourceQuality "1"]
[TimeControl "5400+30"]

1. e4 {[%emt 0:00:03]} e5 {[%emt 0:00:04]} 2. Nf3 {[%emt 0:00:03]} Nc6 {[%emt 0:00:12]} 3. d4 {[%emt 0:00:05]} exd4 {[%emt 0:00:28]} 4. Nxd4 {[%emt 0:00:14]} Qe7 {[%emt 0:02:10]} 5. Nc3 {[%emt 0:00:29]} Nxd4 {[%emt 0:03:19]} 6. Qxd4 {[%emt 0:00:09]} Qc5 {[%emt 0:11:06]} 7. Be3 {[%emt 0:00:12]} Qxd4 {[%emt 0:01:02]} 8. Bxd4 {[%emt 0:00:02]} Bb4 {[%emt 0:00:35]} 9. Bxg7 {[%emt 0:00:22]} d6 {[%emt 0:01:34]} 10. Bxh8 {[%emt 0:00:10]} f6 {[%emt 0:00:31]} 11. O-O-O {[%emt 0:00:19]} Bxc3 {[%emt 0:00:35]} 12. bxc3 {[%emt 0:00:02]} Be6 {[%emt 0:00:50]} 13. Kb1 {[%emt 0:00:56]} Kf7 {[%emt 0:01:44]} 14. f4 {[%emt 0:00:18]} Ne7 {[%emt 0:03:11]} 15. f5 {[%emt 0:01:05]} Bxa2+ {[%emt 0:09:59]} 16. Kxa2 {[%emt 0:00:07]} Rxh8 {[%emt 0:00:02]} 17. Bc4+ {[%emt 0:00:28]} Kg7 {[%emt 0:03:02]} 18. g4 {[%emt 0:00:07]} a6 {[%emt 0:01:53]} 19. h4 {[%emt 0:00:06]} b5 {[%emt 0:00:41]} 20. Be6 {[%emt 0:00:06]} Rb8 {[%emt 0:02:07]} 21. g5 {[%emt 0:00:31]} Rb6 {[%emt 0:02:13]} 22. Rhg1 {[%emt 0:00:07]} c5 {[%emt 0:05:48]} 23. h5 {[%emt 0:00:24]} b4 {[%emt 0:07:38]} 24. Rb1 {[%emt 0:00:07]} a5 {[%emt 0:02:08]} 25. h6+ {[%emt 0:00:05]} Kh8 {[%emt 0:01:28]} 26. g6 {[%emt 0:00:06]} hxg6 {[%emt 0:00:22]} 27. fxg6 {[%emt 0:00:09]} Rb8 {[%emt 0:01:42]} 28. cxb4 {[%emt 0:00:15]} axb4 {[%emt 0:00:17]} 29. Rbf1 {[%emt 0:00:10]} Ra8+ {[%emt 0:00:34]} 30. Kb2 {[%emt 0:00:07]} c4 {[%emt 0:02:39]} 31. Rxf6 {[%emt 0:00:13]} c3+ {[%emt 0:00:50]} 32. Kb3 {[%emt 0:00:06]} Ra3+ {[%emt 0:03:24]} 33. Kxb4 {[%emt 0:00:09]} Nd5+ {[%emt 0:00:57]} 34. Bxd5 {[%emt 0:00:08]} Rb3+ {[%emt 0:00:28]} 35. Kxb3 {[%emt 1:40:00]} 1/2-1/2

[Event "Djerba Festival Open-B 2025"]
[Site "Djerba"]
[Date "2025.02.18"]
[Round "4.24"]
[White "Banat, Rizlene"]
[Black "Weslati, Monem"]
[Result "1/2-1/2"]
[Annotator "NA"]
[ECO "A38"]
[WhiteElo "1785"]
[BlackElo "1591"]
[PlyCount "46"]
[EventDate "2025.02.15"]
[EventType "swiss"]
[EventCountry "TUN"]
[SourceTitle "playchess.com"]
[Source "ChessBase"]
[SourceQuality "1"]
[TimeControl "5400+30"]

1. Nf3 {[%emt 1:31:00]} Nf6 {[%emt 1:31:00]} 2. c4 {[%emt 0:00:30]} c5 {[%emt 0:00:30]} 3. g3 {[%emt 0:00:30]} g6 {[%emt 0:00:30]} 4. Bg2 {[%emt 0:00:30]} Bg7 {[%emt 0:00:30]} 5. O-O {[%emt 0:00:30]} Nc6 {[%emt 0:00:30]} 6. Nc3 {[%emt 0:00:30]} d6 {[%emt 0:00:30]} 7. d3 {[%emt 0:00:30]} Bd7 {[%emt 0:00:30]} 8. Rb1 {[%emt 0:00:30]} Bg4 {[%emt 0:00:30]} 9. a3 {[%emt 0:00:30]} a5 {[%emt 0:00:30]} 10. h3 {[%emt 0:00:30]} Bd7 {[%emt 0:00:30]} 11. Nd2 {[%emt 0:00:30]} Qc8 {[%emt 0:00:30]} 12. Kh2 {[%emt 0:00:30]} h5 {[%emt 0:00:30]} 13. Nde4 {[%emt 0:00:30]} Nh7 {[%emt 0:00:30]} 14. Nd5 {[%emt 0:00:30]} Ra6 {[%emt 0:00:30]} 15. Bd2 {[%emt 0:00:30]} Nd4 {[%emt 0:00:30]} 16. e3 {[%emt 0:00:30]} Ne6 {[%emt 0:00:30]} 17. Bc3 {[%emt 0:00:30]} f6 {[%emt 0:00:30]} 18. Nf4 {[%emt 0:00:30]} Kf7 {[%emt 0:00:30]} 19. Nxe6 {[%emt 0:00:30]} Bxe6 {[%emt 0:00:30]} 20. f4 {[%emt 0:00:30]} Bd7 {[%emt 0:00:30]} 21. Nf2 {[%emt 0:00:30]} e6 {[%emt 0:00:30]} 22. Qe1 {[%emt 0:00:30]} Qc7 {[%emt 0:00:30]} 23. Qd2 {[%emt 0:00:30]} a4 {[%emt 0:00:30]} 1/2-1/2

[Event "Djerba Festival Open-B 2025"]
[Site "Djerba"]
[Date "2025.02.18"]
[Round "4.25"]
[White "Chavallard, Yanis"]
[Black "Smida, Tahar"]
[Result "0-1"]
[Annotator "NA"]
[ECO "A14"]
[WhiteElo "1605"]
[BlackElo "1769"]
[PlyCount "131"]
[EventDate "2025.02.15"]
[EventType "swiss"]
[EventCountry "TUN"]
[SourceTitle "playchess.com"]
[Source "ChessBase"]
[SourceQuality "1"]
[TimeControl "5400+30"]

1. c4 {[%emt 0:00:15]} Nf6 {[%emt 0:00:35]} 2. g3 {[%emt 0:00:08]} e6 {[%emt 0:00:20]} 3. Nf3 {[%emt 0:00:28]} d5 {[%emt 0:00:35]} 4. Bg2 {[%emt 0:00:08]} Be7 {[%emt 0:01:14]} 5. O-O {[%emt 0:00:39]} O-O {[%emt 0:00:06]} 6. Nc3 {[%emt 0:01:57]} c6 {[%emt 0:00:19]} 7. cxd5 {[%emt 0:06:01]} exd5 {[%emt 0:00:48]} 8. b3 {[%emt 0:05:25]} Nbd7 {[%emt 0:05:54]} 9. Bb2 {[%emt 0:01:22]} Nc5 {[%emt 0:00:56]} 10. Qc2 {[%emt 0:01:25]} d4 {[%emt 0:07:32]} 11. Nxd4 {[%emt 0:13:15]} Qxd4 {[%emt 0:05:41]} 12. Nd5 {[%emt 0:00:14]} Qxd5 {[%emt 0:00:45]} 13. Bxd5 {[%emt 0:00:06]} Nxd5 {[%emt 0:00:15]} 14. Ba3 {[%emt 0:01:25]} Ne6 {[%emt 0:02:01]} 15. Bb2 {[%emt 0:09:16]} Bf6 {[%emt 0:02:33]} 16. e4 {[%emt 0:04:59]} Nb4 {[%emt 0:02:43]} 17. Qb1 {[%emt 0:00:34]} Nd4 {[%emt 0:04:04]} 18. Qd1 {[%emt 0:02:58]} Bh3 {[%emt 0:03:24]} 19. Re1 {[%emt 0:00:33]} Nd3 {[%emt 0:02:00]} 20. Bxd4 {[%emt 0:01:40]} Bxd4 {[%emt 0:00:55]} 21. Qf3 {[%emt 0:02:25]} Nxf2 {[%emt 0:03:34]} 22. Rab1 {[%emt 0:03:56]} Nxe4+ {[%emt 0:02:05]} 23. Kh1 {[%emt 0:00:10]} Nf2+ {[%emt 0:00:28]} 24. Kg1 {[%emt 0:00:05]} Bg4 {[%emt 0:01:20]} 25. Qg2 {[%emt 0:00:24]} Nd3+ {[%emt 0:02:18]} 26. Kf1 {[%emt 0:00:54]} Nxe1 {[%emt 0:01:18]} 27. Rxe1 {[%emt 0:00:04]} Rfe8 {[%emt 0:00:57]} 28. Re4 {[%emt 0:00:07]} Rxe4 {[%emt 0:00:30]} 29. Qxe4 {[%emt 0:00:00]} Bh3+ {[%emt 0:00:15]} 30. Ke1 {[%emt 0:00:31]} Bb6 {[%emt 0:02:06]} 31. Qe7 {[%emt 0:00:09]} Rb8 {[%emt 0:04:02]} 32. Qe5 {[%emt 0:00:54]} Rf8 {[%emt 0:03:18]} 33. Qe7 {[%emt 0:01:25]} Bc8 {[%emt 0:00:13]} 34. Ke2 {[%emt 0:01:40]} Bd8 {[%emt 0:01:10]} 35. Qe3 {[%emt 0:00:26]} a6 {[%emt 0:01:04]} 36. Kf3 {[%emt 0:01:33]} Be6 {[%emt 0:00:40]} 37. Qa7 {[%emt 0:01:03]} Bc8 {[%emt 0:00:41]} 38. Qe3 {[%emt 0:00:04]} Bf6 {[%emt 0:00:50]} 39. Qe4 {[%emt 0:05:31]} h6 {[%emt 0:02:44]} 40. Qe3 {[%emt 0:02:36]} Rd8 {[%emt 0:01:36]} 41. Qe2 {[%emt 0:03:31]} Bg5 {[%emt 0:01:17]} 42. h4 {[%emt 0:00:53]} Bxd2 {[%emt 0:02:24]} 43. Qe7 {[%emt 0:01:24]} Rf8 {[%emt 0:00:02]} 44. Qc5 {[%emt 0:05:43]} a5 {[%emt 0:02:08]} 45. a3 {[%emt 0:00:09]} Re8 {[%emt 0:03:57]} 46. Qf2 {[%emt 0:05:30]} Be3 {[%emt 0:01:00]} 47. Qe1 {[%emt 0:00:00]} b6 {[%emt 0:01:18]} 48. Qd1 {[%emt 0:06:55]} Bc5 {[%emt 0:02:38]} 49. a4 {[%emt 0:00:01]} Be6 {[%emt 0:00:36]} 50. Kf4 {[%emt 0:00:54]} Bd5 {[%emt 0:00:29]} 51. h5 {[%emt 0:01:14]} Re4+ {[%emt 0:00:52]} 52. Kf5 {[%emt 0:00:23]} Kh7 {[%emt 0:01:35]} 53. Qg4 {[%emt 0:06:12]} Rxg4 {[%emt 0:00:56]} 54. Kxg4 {[%emt 0:00:02]} Bxb3 {[%emt 0:00:33]} 55. Kh4 {[%emt 0:00:12]} Be6 {[%emt 0:00:25]} 56. g4 {[%emt 0:00:26]} Bxg4 {[%emt 0:00:25]} 57. Kxg4 {[%emt 0:00:02]} b5 {[%emt 0:00:17]} 58. axb5 {[%emt 0:00:11]} cxb5 {[%emt 0:00:07]} 59. Kf4 {[%emt 0:00:04]} g5+ {[%emt 0:00:16]} 60. hxg6+ {[%emt 0:00:04]} fxg6 {[%emt 0:00:16]} 61. Ke4 {[%emt 0:00:13]} Bd4 {[%emt 0:00:15]} 62. Kxd4 {[%emt 0:00:16]} g5 {[%emt 0:00:06]} 63. Ke4 {[%emt 0:00:02]} b4 {[%emt 0:00:12]} 64. Kd3 {[%emt 0:00:07]} a4 {[%emt 0:00:04]} 65. Kc2 {[%emt 0:11:47]} Kg6 {[%emt 0:00:06]} 66. Kd1 {[%emt 0:00:30]} 0-1